Workbook

Sheet READ ME FIRST !!!
B1: :: Calculator for Depreciation ::
B3: As per the SCHEDULE - II
B5: Under the Companies Act, 2013
B6: @ Calculator By: CA BiMaL M. Bhadarka
B8: :: INSTRUCTIONS ::
B11: A. | C11: : | D11: This utility is useful for working a LIFE-TIME DEPRECIATION of the Property, Plant & Equipment (hereinafter referred to as "PPE") of the Companies in accordance with the SCHEDULE - II under the Companies Act, 2013. The Schedule - II under the Companies Act, 2013 including the details of useful lives is also forming part of this utility for ready reference only. This calculator is updated till F.Y. 2020-21 and can be useful for working depreciation even on the PPE acquired during the F.Y. 2020-21 also.
B14: B. | C14: : | D14: This is a macro enabled excel workbook and therefore, the user is expected to enable the macros on opening the file. The user is requested to please fill-up only GREEN marked cells in the excel sheet named "DEPRECIATION > CALCULATOR" and not to make any changes in other part of the sheet to get the desired results. It is also requested that the COMMENTS provided in respect of each of such green marked fillable cells may please be read before feeding the data in the "DEPRECIATION > CALCULATOR" sheet.
B17: C. | C17: : | D17: The user is expected to PROVIDE ONLY FEW basic information about the PPE such as…
D18: 1. | E18: Selection of applicable Method of Depreciation viz-a-viz. WDV or SLM.
D19: 2. | E19: Selection of appropriate Type and relevant Description of the PPE in consonance with the Schedule - II from the drop-down lists made available.
D20: 3. | E20: Provide the Date and Cost of Acquisition of the PPE.
D21: 4. | E21: Provide Scrap Value of PPE as estimated by the Management of the Company. It may please be noted that the maximum scrap value is restricted to 5% of the cost.
D22: 5. | E22: In a case where the relevant PPE is acquired before 01.04.2014, provide Opening Value of the PPE as on 01.04.2014 i.e. value remained as on 01.04.2014 after reducing depreciation.
D23: 6. | E23: Selection of Number of Shifts for which the PPE is being used.
D24: 7. | E24: In the case of disposal (i.e. sale or discard) of the PPE, the user is expected to provide the Date of Disposal and net Sale Consideration derived on such disposal.
B27: D. | C27: : | D27: By feeding only few basic information about the PPE as above, the user will be able to get the LIFE-TIME DEPRECIATION on such PPE under any of the methods of depreciation for a particular number of shifts alongwith a working of Profit/Loss on disposal of such PPE, if any. The user can COPY the complete database by clicking on button "COPY the LIFE TIME DEPRECIATION" available on the right-side after completing the calculation of depreciation of each PPE and PASTE the entire working on the destination file by pressing "CTRL+V".
D28: .
B30: E. | C30: : | D30: Besides allowing the life time depreciation on PPE, this utility also provide a distinguished feature to prepare a PPE REGISTER FOR F.Y. 2019-20 in excel sheet named "PPE REGISTER - 2019-20" by clicking on button "GO…☞" available on the right-side after completing the calculation of depreciation of each of the PPE. The excel sheet "PPE REGISTER - 2019-20" is editable and the user can make changes as per the convenience.
B33: F. | C33: : | D33: This utility is meant for calculating depreciation on tangible assets and for the the companies following April to March Financial Year. This utility is confined to the provisions of the Schedule - II and therefore, it is useful where the useful life is determined as per the Schedule - II and scrap value is estimated maximum upto 5% of the cost. Thus, in the situation of any deviation from the Schedule - II, this utility will not be useful in view of specific restrictions.
B36: G. | C36: : | D36: Disclaimer: This utility is prepared by me based on my knowledge about the Companies Act, 2013 and MicroSoft Excel. This utility is prepared on the basis of specific assumptions and therefore, there may remain some minor variations with the others. This utility is provided exclusively for the benefit of users without any charge or fees and the users should use this at their own risk. The possibilities of errors and omissions can not be totally ruled out in any calculation and I do not claim that this utility is fully accurate though the due cares are taken to minimize the possibility of errors and omissions. I do not accept or assume any responsibility for any such errors or omissions and the loss or damage caused due to them. The users are advised to cross-verify the outcomes before placing reliance on this utility.

Sheet Schedule-II under Companies Act
B1: Annexure- A
B2: SCHEDULE - II (including the amendments)
B3: (See section 123)
B4: USEFUL LIVES TO COMPUTE DEPRECIATION
B5: @ Calculator By: CA BiMaL M. Bhadarka
B6: PART - 'A'
B10: 1. | C10: Depreciation is the systematic allocation of the depreciable amount of an asset over its useful life. The depreciable amount of an asset is the cost of an asset or other amount substituted for cost, less its residual value. The useful life of an asset is the period over which an asset is expected to be available for use by an entity, or the number of production or similar units expected to be obtained from the asset by the entity.
B12: 2. | C12: For the purpose of this Schedule, the term depreciation includes amortization.
B14: 3. | C14: Without prejudice to the, foregoing provisions of paragraph 1,—
C16: (i) | D16: The useful life of an asset shall not ordinarily be different from the useful life specified in Part C and the residual value of an asset shall not be more than five per cent. of the original cost of the asset:
D18: * Provided that where a company adopts a useful life different from what is specified in Part C or uses a residual value different from the limit specified above, the financial statements shall disclose such difference and provide justification in this behalf duly supported by technical advice.
C20: (ii) | D20: For intangible assets, the provisions of the accounting standards applicable for the time being in force shall apply, except in case of intangible assets (Toll Roads) created under ‘Build, Operate and Transfer', ‘Build, Own, Operate and Transfer' or any other form of public private partnership route in case of road projects. Amortization in such cases may be done as follows:-
D22: (a) Mode of amortization
G23: Amortization Rate = | H23: Amortization Amount x 100
H24: Cost of Intangible Assets (A)
G26: Amortization Amount = | H26: Cost of Intangible Assets (A) x Actual Revenue for the year (B)
H27: Projected Revenue from Intangible Asset (till the end of the concession period) (C)
D29: (b) Meaning of particulars are as follows:-
D31: Cost of Intangible Assets (A) = | H31: Cost incurred by the company in accordance with the accounting standards.
D33: Actual Revenue for the year (B) = | H33: Actual revenue (Toll Charges) received during the accounting year.
D35: Projected Revenue from Intangible Asset (C) = | H35: Total projected revenue from the Intangible Assets as provided to the project lender at the time of financial closure / agreement.
D37: * The amortization amount or rate should ensure that the whole of the cost of the intangible asset is amortized over the concession period.
D39: * Revenue shall be reviewed at the end of each financial year and projected revenue shall be adjusted to reflect such changes, if any, in the estimates as will lead to the actual collection at the end of the concession period.
D41: * Where a company arrives at the amortization amount in respect of the said Intangible Assets in accordance with any method as per the applicable Accounting Standards, it shall disclose the same.
B43: PART - 'B'
B47: 4. | C47: The useful life or residual value of any specific asset, as notified for accounting purposes by a Regulatory Authority constituted under an Act of Parliament or by the Central Government shall be applied in calculating the depreciation to be provided for such asset irrespective of the requirements of this Schedule.
B50: PART - 'C'
B54: 5. | C54: Subject to Parts A and B above, the following are the useful lives of various tangible assets:
C56: Sr. No. | E56: Nature & Description of the Assets | J56: Useful Life (in Years)
C57: 1 | E57: Buildings [NESD]
D58: (a) | E58: Buildings (other than factory buildings) RCC Frame Structure | J58: 60
D59: (b) | E59: Buildings (other than factory buildings) other than RCC Frame Structure | J59: 30
D60: (c) | E60: Factory buildings | J60: 30
D61: (d) | E61: Fences, wells, tube wells | J61: 5
D62: (e) | E62: Others (including temporary structure, etc.) | J62: 3
C63: 2 | E63: Bridges, culverts, bunders, etc. [NESD] | J63: 30
C64: 3 | E64: Roads [NESD]
D65: (a) | E65: Carpeted roads
E66: (i) | F66: Carpeted Roads—RCC | J66: 10
E67: (ii) | F67: Carpeted Roads—other than RCC | J67: 5
D68: (b) | E68: Non-carpeted roads | J68: 3
C69: 4 | E69: Plant and Machinery
D70: (A) | E70: General rate applicable to plant and machinery not covered under special plant and machinery
E71: (a) | F71: Plant and Machinery other than continuous process plant not covered under specific industries | J71: 15
E72: (b) | F72: Continuous process plant for which no special rate has been prescribed under (B) below [NESD] | J72: 25
D73: (B) | E73: Special Plant and Machinery
E74: (a) | F74: Plant and Machinery related to production and exhibition of Motion Picture Films
F75: (i) | G75: Cinematograph films—Machinery used in the production and exhibition of cinematograph films, recording and reproducing equipments, developing machines, printing machines, editing machines, synchronizers and studio lights except bulbs | J75: 13
F76: (ii) | G76: Projecting equipment for exhibition of films | J76: 13
E77: (b) | F77: Plant and Machinery used in glass manufacturing
F78: (i) | G78: Plant and Machinery except direct fire glass melting furnaces — Recuperative and regenerative glass melting furnaces | J78: 13
F79: (ii) | G79: Plant and Machinery except direct fire glass melting furnaces—Moulds [NESD] | J79: 8
F80: (iii) | G80: Float Glass Melting Furnaces [NESD] | J80: 10
E81: (c) | F81: Plant and Machinery used in mines and quarries— Portable under ground machinery and earth moving machinery used in open cast mining [NESD] | J81: 8
E82: (d) | F82: Plant and Machinery used in Telecommunications [NESD]
F83: (i) | G83: Towers | J83: 18
F84: (ii) | G84: Telecom transceivers, switching centers, transmission and other network equipment | J84: 13
F85: (iii) | G85: Telecom-Ducts, Cables and optical fibre | J85: 18
F86: (iv) | G86: Satellites | J86: 18
E87: (e) | F87: Plant and Machinery used in exploration, production and refining oil and gas [NESD]
F88: (i) | G88: Refineries | J88: 25
F89: (ii) | G89: Oil and gas assets (including wells), processing plant and facilities | J89: 25
F90: (iii) | G90: Petrochemical Plant | J90: 25
F91: (iv) | G91: Storage tanks and related equipment | J91: 25
F92: (v) | G92: Pipelines | J92: 30
F93: (vi) | G93: Drilling Rig | J93: 30
F94: (vii) | G94: Field operations (above ground) Portable boilers, drilling tools, well-head tanks, etc. | J94: 8
F95: (viii) | G95: Loggers | J95: 8
E96: (f) | F96: Plant and Machinery used in generation, transmission and distribution of power [NESD]
F97: (i) | G97: Thermal/Gas/Combined Cycle Power Generation Plant | J97: 40
F98: (ii) | G98: Hydro Power Generation Plant | J98: 40
F99: (iii) | G99: Nuclear Power Generation Plant | J99: 40
F100: (iv) | G100: Transmission lines, cables and other network assets | J100: 40
F101: (v) | G101: Wind Power Generation Plant | J101: 22
F102: (vi) | G102: Electric Distribution Plant | J102: 35
F103: (vii) | G103: Gas Storage and Distribution Plant | J103: 30
F104: (viii) | G104: Water Distribution Plant including pipelines | J104: 30
E105: (g) | F105: Plant and Machinery used in manufacture of steel
F106: (i) | G106: Sinter Plant | J106: 20
F107: (ii) | G107: Blast Furnace | J107: 20
F108: (iii) | G108: Coke ovens | J108: 20
F109: (iv) | G109: Rolling mill in steel plant | J109: 20
F110: (v) | G110: Basic oxygen Furnace Converter | J110: 25
E111: (h) | F111: Plant and Machinery used in manufacture of nonferrous metals
F112: (i) | G112: Metal pot line [NESD] | J112: 40
F113: (ii) | G113: Bauxite crushing and grinding section [NESD] | J113: 40
F114: (iii) | G114: Digester section [NESD] | J114: 40
F115: (iv) | G115: Turbine [NESD] | J115: 40
F116: (v) | G116: Equipments for Calcination [NESD] | J116: 40
F117: (vi) | G117: Copper Smelter [NESD] | J117: 40
F118: (vii) | G118: Roll Grinder | J118: 40
F119: (viii) | G119: Soaking Pit | J119: 30
F120: (ix) | G120: Annealing Furnace | J120: 30
F121: (x) | G121: Rolling Mills | J121: 30
F122: (xi) | G122: Equipments for Scalping, Slitting , etc. [NESD] | J122: 30
F123: (xii) | G123: Surface Miner, Ripper Dozer, etc., used in mines | J123: 25
F124: (xiii) | G124: Copper refining plant [NESD] | J124: 25
E125: (i) | F125: Plant and Machinery used in medical and surgical operations [NESD]
F126: (i) | G126: Electrical Machinery, X-ray and electrotherapeutic apparatus and accessories thereto, medical, diagnostic equipments, namely, Cat-Scan, Ultrasound Machines, ECG Monitors, etc. | J126: 13
F127: (ii) | G127: Other Equipments. | J127: 15
E128: (j) | F128: Plant and Machinery used in manufacture of pharmaceuticals and chemicals [NESD]
F129: (i) | G129: Reactors | J129: 20
F130: (ii) | G130: Distillation Columns | J130: 20
F131: (iii) | G131: Drying equipments/Centrifuges and Decanters | J131: 20
F132: (iv) | G132: Vessel/storage tanks | J132: 20
E133: (k) | F133: Plant and Machinery used in civil construction
F134: (i) | G134: Concreting, Crushing, Piling Equipments and Road Making Equipments | J134: 12
F135: (ii) | G135: Heavy Lift Equipments—
G136: - Cranes with capacity of more than 100 tons | J136: 20
G137: - Cranes with capacity of less than 100 tons | J137: 15
F138: (iii) | G138: Transmission line, Tunneling Equipments [NESD] | J138: 10
F139: (iv) | G139: Earth-moving equipments | J139: 9
F140: (v) | G140: Others including Material Handling /Pipeline/Welding Equipments [NESD] | J140: 12
E141: (l) | F141: Plant and Machinery used in salt works [NESD] | J141: 15
C142: 5 | E142: Furniture and fittings [NESD]
D143: (a) | E143: General furniture and fittings | J143: 10
D144: (b) | E144: Furniture and fittings used in hotels, restaurants and boarding houses, schools, colleges and other educational institutions, libraries; welfare centres; meeting halls, cinema houses; theatres and circuses; and furniture and fittings let out on hire for use on the occasion of marriages and similar functions. | J144: 8
C145: 6 | E145: Motor Vehicles [NESD]
D146: (a) | E146: Motor cycles, scooters and other mopeds | J146: 10
D147: (b) | E147: Motor buses, motor lorries, motor cars and motor taxies used in a business of running them on hire | J147: 6
D148: (c) | E148: Motor buses, motor lorries and motor cars other than those used in a business of running them on hire | J148: 8
D149: (d) | E149: Motor tractors, harvesting combines and heavy vehicles | J149: 8
D150: (e) | E150: Electrically operated vehicles including battery powered or fuel cell powered vehicles | J150: 8
C151: 7 | E151: Ships [NESD]
D152: (A) | E152: Ocean-going ships
E153: (a) | F153: Bulk Carriers and liner vessels | J153: 25
E154: (b) | F154: Crude tankers, product carriers and easy chemical carriers with or without conventional tank coatings. | J154: 20
E155: (c) | F155: Chemicals and Acid Carriers:
F156: (i) | G156: With Stainless steel tanks | J156: 25
F157: (ii) | G157: With other tanks | J157: 20
E158: (d) | F158: Liquified gas carriers | J158: 30
E159: (e) | F159: Conventional large passenger vessels which are used for cruise purpose also | J159: 30
E160: (f) | F160: Coastal service ships of all categories | J160: 30
E161: (g) | F161: Offshore supply and support vessels | J161: 20
E162: (h) | F162: Catamarans and other high speed passenger for ships or boats | J162: 20
E163: (i) | F163: Drill ships | J163: 25
E164: (j) | F164: Hovercrafts | J164: 15
E165: (k) | F165: Fishing vessels with wooden hull | J165: 10
E166: (l) | F166: Dredgers, tugs, barges, survey launches and other similar ships used mainly for dredging purposes | J166: 14
D167: (B) | E167: Vessels ordinarily operating on inland waters—
E168: (a) | F168: Speed boats | J168: 13
E169: (b) | F169: Other vessels | J169: 28
C170: 8 | E170: Aircrafts or Helicopters [NESD] | J170: 20
C171: 9 | E171: Railways sidings, locomotives, rolling stocks, tramways and railways used by concerns, excluding railway concerns [NESD] | J171: 15
C172: 10 | E172: Ropeway structures [NESD] | J172: 15
C173: 11 | E173: Office equipment [NESD] | J173: 5
C174: 12 | E174: Computers and data processing units [NESD]
D175: (A) | E175: Servers and networks | J175: 6
D176: (B) | E176: End user devices, such as, desktops, laptops, etc. | J176: 3
C177: 13 | E177: Laboratory equipment [NESD]
D178: (A) | E178: General laboratory equipment | J178: 10
D179: (B) | E179: Laboratory equipments used in educational institutions | J179: 5
C180: 14 | E180: Electrical Installations and Equipment [NESD] | J180: 10
C181: 15 | E181: Hydraulic works, pipelines and sluices [NESD] | J181: 15
C183: NOTES:
C185: 1. | D185: "Factory buildings" does not include offices, godowns, staff quarters.
C186: 2. | D186: Where, during any financial year, any addition has been made to any asset, or where any asset has been sold, discarded, demolished or destroyed, the depreciation on such assets shall be calculated on a pro rata basis from the date of such addition or, as the case may be, up to the date on which such asset has been sold, discarded, demolished or destroyed.
C187: 3. | D187: The following information shall also be disclosed in the accounts, namely:—
D188: (i) | E188: depreciation methods used; and
D189: (ii) | E189: the useful lives of the assets for computing depreciation, if they are different from the life specified in the Schedule.
C190: 4. | D190: (a) | E190: Useful life specified in Part C of the Schedule is for whole of the asset. Where cost of a part of the asset is significant to total cost of the asset and useful life of that part is different from the useful life of the remaining asset, useful life of that significant part shall be determined separately.
D191: (b) | E191: The requirement under sub-paragraph (a) shall be voluntary in respect of the financial year commencing on or after the 1st April, 2014 and mandatory for financial statements in respect of financial years commencing on or after the 1st April, 2015.
C192: 5. | D192: The useful lives of assets working on shift basis have been specified in the Schedule based on their single shift working. Except for assets in respect of which no extra shift depreciation is permitted (indicated by NESD in Part C above), if an asset is used for any time during the year for double shift, the depreciation will increase by 50% for that period and in case of the triple shift the depreciation shall be calculated on the basis of 100%% for that period.
C193: 6. | D193: From the date this Schedule comes into effect, the carrying amount of the asset as on that date—
D194: (a) | E194: shall be depreciated over the remaining useful life of the asset as per this Schedule;
D195: (b) | E195: after retaining the residual value, may be recognized in the opening balance of retained earnings where the remaining useful life of an asset is nil.
C196: 7. | D196: "Continuous process plant" means a plant which is required and designed to operate for twenty-four hours a day.

Sheet DEPRECIATION > CALCULATOR
A1: :: Calculator for Depreciation ::
A3: As per the SCHEDULE - II
A5: Under the Companies Act, 2013
A7: # Please fill Green Marked Cells only. | G7: @ Calculator By: CA BiMaL M. Bhadarka
B9: 1 | C9: Select the METHOD OF DEPRECIATION followed by the Company | E9: Straight Line Method (SLM)
B10: 2 | C10: Select the TYPE OF THE PPE as per Part-C of Schedule - II under Companies Act | E10: A6_Motor_Vehicles
C11: Please allow brief DESCRIPTION OF PPE: | E11: ☞
A12: Hide | C12: Select the Category of a particular PPE as per Part-C of the Schedule - II. | E12: MV_Other_than_used_in_business_of_hire | H12: ﻿
A13: Hide | C13: Select Sub-Category of a particular PPE as per Part-C of the Schedule - II. | E13: Other than continuous process plant | G13: =IF($E$10="A4_Plant_and_Machinery", "", "Unhide") -> Unhide
A14: Hide | C14: Select the Name of the PPE as per Part-C of Schedule - II under Companies Act | E14: Motor Cars
C15: Provide the Name of the PPE as per Books of the Company [For ready reference only] | E15: MY FAVOURITE PPE
B16: 3 | C16: Useful life of the PPE as per SCHEDULE - II | E16: =VLOOKUP($E$14,Sheet1!$U$30:$V$175,2,FALSE) -> 8 | L16: Single Shift
B17: 4 | C17: Provide Cost of Acquisition of the PPE [i.e. Cost at the time of Purchase] | E17: 4500000 | J17: Written Down Value (WDV) | K17: 1-[(S/C)1/n] | L17: Double Shift
B18: 5 | C18: Provide Date of Acquisition of the PPE | E18: 2012-12-12 | H18: =IF($E$18>$AM$44, "Invalid Date", " ") ->  | J18: Straight Line Method (SLM) | K18: [(C-S)/n] | L18: Triple Shift
B19: 6 | C19: Mention the Scrap Value of PPE as estimated. [Restricted maximum upto 5%] | E19: 180000 | H19: =IF(OR(E19>E17, E19>E20), "Invalid Amount", " ") ->  | J19: Opening Value as on 01-04-2014 [C] for calculation | M19: =IF((E21>E17), "Invalid Amount", E21) -> 3600000
C20: Scrap Value for the purpose of calculation (estimate max. at 5%) [S] | E20: =IF(E19>E17,"Invalid Amount",IF(OR((E19>(E17*5%)), (E19=0)), (E17*5%), (E19))) -> 180000 | G20: Unhide | J20: Date to create opening value error | M20: 2015-03-31
B21: 7 | C21: Provide Opening Value as on 01-04-2014 in case PPE acquired before 01.04.2014 | E21: 3600000 | H21: =IF((E21>E17), "Invalid Amount", " ") ->  | J21: Counting Date | M21: 2014-03-31
C22: Remaining Useful Life as on 01-04-2014 (in years) [n] | E22: =IF((E16-M23)<=0, 0, (E16-M23)) -> 6.697222222 | G22: Unhide | J22: No. of years asset used from the date of acquisition till 31-03-2014 | M22: =DATEDIF(E18,M21,"y") & " Yrs, " & DATEDIF(E18,M21,"ym") & " Mths, " & DATEDIF(E18,M21,"md") & " Ds" -> 1 Yrs, 3 Mths, 19 Ds
B23: 8 | C23: Transitional Adjustment to Retained Earnings, if any, when PPE acquired before 01.04.2014: | M23: =YEARFRAC(E18,M21) -> 1.302777778
C24: ☞ Dr. to Op. P & L A/c. & Cr. to Asset A/c. | E24: =IF($E$18<$AL$38,(IF(((IF(IF(E22<=0,(M19-E20),0)<=0,0,(M19-E20)))<0.5),"--",(IF(IF(E22<=0,(M19-E20),0)<=0,0,(M19-E20))))),"--") -> -- | J24: Depreciable Value [C-S] | M24: =M19-E20 -> 3420000 | S24: Depreciable Value [C-S] | V24: =+E17-E20 -> 4320000
C25: ☞ Dr. to Asset A/c. & Cr. to Op. P & L A/c. | E25: =IF($E$18<$AL$38,(IF(((IF(E22>0&(E20>M19),0,(IF(E20>M19,(E20-M19),0))))<0.5),"--",(IF(E22>0&(E20>M19),0,(IF(E20>M19,(E20-M19),0)))))),"--") -> -- | J25: No. of Months of Usage in the year of addition | M25: =IF((E22<1), E22, 12) -> 12 | O25: Old - 1 | Q25: New -1 | S25: Old-2 | U25: New-2 | W25: FINAL
B26: 9 | C26: Provide Number of Shifts the PPE is used | E26: Single Shift | J26: WDV Rate : | K26: 1-[(S/C)1/n] | L26: =IF($E$18<$AR$38,(IF($E$18>$AS$44, "Invalid Date", IF(OR(E22<=0,(E20>M19)),0,IF((E22<1),((M19-E20)/M19),(1-(POWER((E20/M19),1/E22))))))), (IF($E$18>$AS$44,"Invalid Date",(1-(POWER((E20/E17),1/E16)))))) -> 0.3606541097 | O26: =IF(E18>M20, "Invalid Date", (IF(E18>M21, "Go to - Assets acquired after 1.4.2014", IF(OR(E22<=0,(E20>M19)),0,IF((E22<1),((M19-E20)/M19),(1-(POWER((E20/M19),1/E22)))))))) -> 0.3606541097 | Q26: =IF($E$18>$AS$44, "Invalid Date", IF(OR(E22<=0,(E20>M19)),0,IF((E22<1),((M19-E20)/M19),(1-(POWER((E20/M19),1/E22)))))) -> 0.3606541097 | S26: =IF(E18>M20, "Invalid Date", IF(AND(M34>12, E18<M21), "Go to 'Assets as on 01.04.2014", (1-(POWER((E20/E17),1/E16))))) ->  | U26: =IF($E$18>$AS$44,"Invalid Date",(1-(POWER((E20/E17),1/E16)))) -> 0.331259695 | W26: =IF($E$18<$AR$38,(IF($E$18>$AS$44, "Invalid Date", IF(OR(E22<=0,(E20>M19)),0,IF((E22<1),((M19-E20)/M19),(1-(POWER((E20/M19),1/E22))))))), (IF($E$18>$AS$44,"Invalid Date",(1-(POWER((E20/E17),1/E16)))))) -> 0.3606541097
C27: Applicable Formula & Rate of Depre. | D27: =IF((E9=J17), K17, K18) -> [(C-S)/n] | E27: =IF((E9=J17), (IF((E26=L18),(L26*2),(IF((E26=L17),(L26*1.5),(L26))))), (IF((E26=L18), (L27*2), (IF((E26=L17), (L27*1.5), (L27)))))) -> 0.1418498548 | G27: Unhide | J27: SLM Rate : | K27: [(C-S)/n] | L27: =IF($E$18<$AR$38, (IF($E$18>$AS$44,"Invalid Date",IF(OR(E22<=0,(E20>M19)),0,IF((E22<1),((M19-E20)/M19),((M24/E22)/M19))))), (IF($E$18>$AS$44,"Invalid Date",((V24/E16)/E17)))) -> 0.1418498548 | O27: =IF(E18>M20, "Invalid Date", (IF(E18>M21, "Go to - Assets acquired after 1.4.2014", IF(OR(E22<=0, (E20>M19)), 0, IF((E22<1), ((M19-E20)/M19), ((M24/E22)/M19)))))) -> 0.1418498548 | Q27: =IF($E$18>$AS$44,"Invalid Date",IF(OR(E22<=0,(E20>M19)),0,IF((E22<1),((M19-E20)/M19),((M24/E22)/M19)))) -> 0.1418498548 | S27: =IF(E18>M20,"Invalid Date",IF(AND(M34>12,E18<M21),"Go to 'Assets as on 01.04.2014'",((V24/E16)/E17))) ->  | U27: =IF($E$18>$AS$44,"Invalid Date",((V24/E16)/E17)) -> 0.12 | W27: =IF($E$18<$AR$38, (IF($E$18>$AS$44,"Invalid Date",IF(OR(E22<=0,(E20>M19)),0,IF((E22<1),((M19-E20)/M19),((M24/E22)/M19))))), (IF($E$18>$AS$44,"Invalid Date",((V24/E16)/E17)))) -> 0.1418498548
B28: 10 | C28: Whether there is Disposal (ie. Sale/Discard) of such PPE after 31.03.2014? ☞ | E28: YES | F28: ☞ | J28: YES | K28: NO | AJ28: For Sale of Asset
A29: =IF($E$28=$J$28, "Unhide", "") -> Unhide | B29: (10.a) | C29: If YES, (ie. when PPE | D29: Date of Disposal | E29: Net Consideration of Sale | G29: Unhide | J29: Year of Sale/Discard | K29: =IF($E$28=$K$28,0,(VLOOKUP($D$30,$AJ$29:$AK$35,2,FALSE))) -> 2019-20 | AJ29: =IF(AND($D$30>=AL29,$D$30<=AM29),$D$30,"N") -> N | AK29: 2014-15 | AL29: 2014-04-01 | AM29: 2015-03-31 | AN29: 365
A30: =IF($E$28=$J$28, "Unhide", "") -> Unhide | C30: disposed off) ☞ | D30: 2019-05-18 | E30: 900000 | G30: Unhide | H30: =IF(D30="","",(IF(OR($D$30>$AM$35,$D$30<$E$18),"Invalid Date"," "))) ->  | J30: No. of Days used in the year of sale/Discard | K30: =IFERROR((IF($K$29=(VLOOKUP($E$18,$AJ$38:$AK$44,2,FALSE)),($D$30-$E$18),(($D$30)-(VLOOKUP($K$29,$AK$29:$AL$35,2,FALSE))))),(($D$30)-(VLOOKUP($K$29,$AK$29:$AL$35,2,FALSE)))) -> 47 | AJ30: =IF(AND($D$30>=AL30,$D$30<=AM30),$D$30,"N") -> N | AK30: 2015-16 | AL30: 2015-04-01 | AM30: 2016-03-31 | AN30: 366
A31: =IF($E$28=$J$28, "Unhide", "") -> Unhide | B31: (10.b) | C31: Profit/(Loss) on Sale or Discard of PPE is… | E31: =IF((IF($E$28=$J$28,(E30-(VLOOKUP($K$29,$B$36:$E$96,4,FALSE))),0))<0,"LOSS =","PROFIT =") -> LOSS = | F31: =IF((IF($E$28=$J$28,(E30-(VLOOKUP($K$29,$B$36:$E$96,4,FALSE))),0))<0,(-IF($E$28=$J$28,(E30-(VLOOKUP($K$29,$B$36:$E$96,4,FALSE))),0)),(IF($E$28=$J$28,(E30-(VLOOKUP($K$29,$B$36:$E$96,4,FALSE))),0))) -> 81126.12276 | G31: Unhide | J31: Total No. of Days in a year | K31: =IFERROR((IF($K$29=(VLOOKUP($E$18,$AJ$38:$AM$44,2,FALSE)),((VLOOKUP($K$29,$AK$29:$AM$35,3,FALSE))-$E$18),(VLOOKUP($K$29,$AK$29:$AN$35,4,FALSE)))), (VLOOKUP($K$29,$AK$29:$AN$35,4,FALSE))) -> 366 | AJ31: N | AK31: 2016-17 | AL31: 2016-04-01 | AM31: 2017-03-31 | AN31: 365
AJ32: N | AK32: 2017-18 | AL32: 2017-04-01 | AM32: 2018-03-31 | AN32: 365
AJ33: N | AK33: 2018-19 | AL33: 2018-04-01 | AM33: 2019-03-31 | AN33: 365
B34: Click Here | C34: ☞ | J34: No. of Months asset used in the year of addition (in months) | M34: =ROUND((DATEDIF($E$18,(VLOOKUP($E$18,$AP$38:$AT$44,5,FALSE)),"d"))/(VLOOKUP($E$18,$AP$38:$AU$44,6,FALSE))*12, 2) ->  | AJ34: 2019-05-18 | AK34: 2019-20 | AL34: 2019-04-01 | AM34: 2020-03-31 | AN34: 366
B35: Year | C35: Opening Balance | D35: Depreciation | E35: Closing Balance | U35: =IF(($E$18>$AS$44), "#VALUE!", IF(AND(M34>12, E18<M19), "#VALUE!", E17)) ->  | V35: =IF($E$18>$AM$44, "#VALUE!", IF((M19<E20), (E25+M19), (IF(OR(E22<=0, (E20>M19)), E20, M19)))) -> 3600000 | W35: =IF($E$18<$AR$38,(IF($E$18>$AM$44, "#VALUE!", IF((M19<E20), (E25+M19), (IF(OR(E22<=0, (E20>M19)), E20, M19))))),(IF(($E$18>$AS$44), "#VALUE!", IF(AND(M34>12, E18<M19), "#VALUE!", E17)))) -> 3600000 | AJ35: =IF(AND($D$30>=AL35,$D$30<=AM35),$D$30,"N") -> N | AK35: 2020-21 | AL35: 2020-04-01 | AM35: 2021-03-31 | AN35: 365
B36: =IF($E$18<$AL$38, $AK$38, (VLOOKUP($E$18,$AJ$38:$AK$44,2,FALSE))) -> 2014-15 | C36: =IF(AND((D30<AL29), (E28=J28)), "#N/A", (((IF($E$18<$AR$38,(IF($E$18>$AM$44,"#VALUE!",IF((M19<E20),(E25+M19),(IF(OR(E22<=0,(E20>M19)),E20,M19))))),(IF(($E$18>$AS$44),"#VALUE!",IF(AND(M34>12,E18<M19),"#VALUE!",E17)))))))) -> 3600000 | D36: =IF(D30="",(IF(($E$18<$AR$38),(IF(B36=$K$29,((IF(C36<=0,0,(IF((C36-(IF(OR($E$22<=0,$M$19<$E$20),0,(IF(($E$22<1),($M$19-$E$20),(C36*$E$27))))))<=$E$20,(C36-$E$20),(IF(OR($E$22<=0,$M$19<$E$20),0,(IF(($E$22<1),($M$19-$E$20),(C36*$E$27)))))))))*$K$30/$K$31),(IF(C36<=0,0,(IF((C36-(IF(OR($E$22<=0,$M$19<$E$20),0,(IF(($E$22<1),($M$19-$E$20),(C36*$E$27))))))<=$E$20,(C36-$E$20),(IF(OR($E$22<=0,$M$19<$E$20),0,(IF(($E$22<1),($M$19-$E$20),(C36*$E$27))))))))))),(IF(B36=$K$29,((IF(C36<=0,0,(IF(((C36-(IF($M$34<12,C36*$E$27*$M$34/12,C36*$E$27)))<=$E$20),(C36-$E$20),(IF($M$34<12,C36*$E$27*$M$34/12,C36*$E$27))))))*$K$30/$K$31),(IF(C36<=0,0,(IF(((C36-(IF($M$34<12,C36*$E$27*$M$34/12,C36*$E$27)))<=$E$20),(C36-$E$20),(IF($M$34<12,C36*$E$27*$M$34/12,C36*$E$27)))))))))),(IF(D30<E18,"Invalid Date",(IF(($E$18<$AR$38),(IF(B36=$K$29,((IF(C36<=0,0,(IF((C36-(IF(OR($E$22<=0,$M$19<$E$20),0,(IF(($E$22<1),($M$19-$E$20),(C36*$E$27))))))<=$E$20,(C36-$E$20),(IF(OR($E$22<=0,$M$19<$E$20),0,(IF(($E$22<1),($M$19-$E$20),(C36*$E$27)))))))))*$K$30/$K$31),(IF(C36<=0,0,(IF((C36-(IF(OR($E$22<=0,$M$19<$E$20),0,(IF(($E$22<1),($M$19-$E$20),(C36*$E$27))))))<=$E$20,(C36-$E$20),(IF(OR($E$22<=0,$M$19<$E$20),0,(IF(($E$22<1),($M$19-$E$20),(C36*$E$27))))))))))),(IF(B36=$K$29,((IF(C36<=0,0,(IF(((C36-(IF($M$34<12,C36*$E$27*$M$34/12,C36*$E$27)))<=$E$20),(C36-$E$20),(IF($M$34<12,C36*$E$27*$M$34/12,C36*$E$27))))))*$K$30/$K$31),(IF(C36<=0,0,(IF(((C36-(IF($M$34<12,C36*$E$27*$M$34/12,C36*$E$27)))<=$E$20),(C36-$E$20),(IF($M$34<12,C36*$E$27*$M$34/12,C36*$E$27))))))))))))) -> 510659.4774 | E36: =IF(AND((D30<AL29),(E28=J28)),"#N/A",((IF((C36-D36)<$E$20,0,(C36-D36))))) -> 3089340.523 | G36: Unhide | U36: IF(B34=$K$27,((IF(C34<=0,0,(IF((C34-(IF(OR(E20<=0,M17<E18),0,(IF((E20<1),(M17-E18),(C34*$E$25))))))<=E18,(C34-E18),(IF(OR(E20<=0,M17<E18),0,(IF((E20<1),(M17-E18),(C34*$E$25)))))))))*$K$28/$K$29), (IF(C34<=0,0,(IF((C34-(IF(OR(E20<=0,M17<E18),0,(IF((E20<1),(M17-E18),(C34*$E$25))))))<=E18,(C34-E18),(IF(OR(E20<=0,M17<E18),0,(IF((E20<1),(M17-E18),(C34*$E$25))))))))))
A37: =IF($H$18="Invalid Date","Hide",(IF($H$19="Invalid Amount","Hide",IF($H$21="Invalid Amount","Hide",(IF($H$30="Invalid Date","Hide",IF(D37<0.5,"Hide",""))))))) ->  | B37: =VLOOKUP(B36,$AK$46:$AL$114,2,FALSE) -> 2015-16 | C37: =IF(B36=$K$29, 0, (IF(($M$19<=$E$20), (E36), (IF(E36<$E$20, 0, E36))))) -> 3089340.523 | D37: =IF(OR(B36=$K$29, D36<0.5), 0, (IF(B37=$K$29,((IF(AND($E$9=$J$17,$D$27=$K$17),(IF(E36<=$E$20,0,IF(((C37)-(C37*$E$27))<$E$20,C37-$E$20,C37*$E$27))),(IF(E36<=$E$20,0,IF((C37-($C$36*$E$27))<$E$20,C37-$E$20,$C$36*$E$27)))))*$K$30/$K$31),(IF(AND($E$9=$J$17,$D$27=$K$17),(IF(E36<=$E$20,0,IF(((C37)-(C37*$E$27))<$E$20,C37-$E$20,C37*$E$27))),(IF(E36<=$E$20,0,IF((C37-($C$36*$E$27))<$E$20,C37-$E$20,$C$36*$E$27)))))))) -> 510659.4774 | E37: =IF((C37-D37)<$E$20, 0, (C37-D37)) -> 2578681.045 | G37: Unhide | U37: =IF(B36=$K$29,((IF(C36<=0,0,(IF(((C36-(IF($M$34<12,C36*$E$27*$M$34/12,C36*$E$27)))<=$E$20),(C36-$E$20),(IF($M$34<12,C36*$E$27*$M$34/12,C36*$E$27))))))*$K$30/$K$31), (IF(C36<=0,0,(IF(((C36-(IF($M$34<12,C36*$E$27*$M$34/12,C36*$E$27)))<=$E$20),(C36-$E$20),(IF($M$34<12,C36*$E$27*$M$34/12,C36*$E$27))))))) ->  | V37: =IF(C36<=0,0,(IF(((C36-(IF($M$34<12,C36*$E$27*$M$34/12,C36*$E$27)))<=$E$20),(C36-$E$20),(IF($M$34<12,C36*$E$27*$M$34/12,C36*$E$27))))) ->  | AJ37: For Acquisition of Asset | AP37: For Additions to the Assets
A38: =IF($H$18="Invalid Date","Hide",(IF($H$19="Invalid Amount","Hide",IF($H$21="Invalid Amount","Hide",(IF($H$30="Invalid Date","Hide",IF(D38<0.5,"Hide",""))))))) ->  | B38: 2016-17 | C38: =IF(B37=$K$29, 0, (IF(($M$19<=$E$20), (E37), (IF(E37<$E$20, 0, E37))))) -> 2578681.045 | D38: 510659.4774 | E38: =IF((C38-D38)<$E$20, 0, (C38-D38)) -> 2068021.568 | G38: Unhide | J38: FOR MASTER DATA | AJ38: =IF(AND($E$18>=AL38,$E$18<=AM38),$E$18,"N") -> N | AK38: 2014-15 | AL38: 2014-04-01 | AM38: 2015-03-31 | AN38: 365 | AP38: =IF(AND($E$18>=AR38,$E$18<=AS38),$E$18,"N") -> N | AQ38: 2014-15 | AR38: 2014-04-01 | AS38: 2015-03-31 | AT38: 2015-04-01 | AU38: 365
A39: =IF($H$18="Invalid Date","Hide",(IF($H$19="Invalid Amount","Hide",IF($H$21="Invalid Amount","Hide",IF($H$30="Invalid Date","Hide",IF(D39<0.5,"Hide","")))))) ->  | B39: 2017-18 | C39: =IF(B38=$K$29, 0, (IF(($M$19<=$E$20), (E38), (IF(E38<$E$20, 0, E38))))) -> 2068021.568 | D39: 510659.4774 | E39: 1557362.09 | G39: Unhide | J39: Preceding Year | M39: 2018-19 | U39: =IF(($E$18<$AR$38), (IF(B36=$K$29,((IF(C36<=0,0,(IF((C36-(IF(OR(E22<=0,M19<E20),0,(IF((E22<1),(M19-E20),(C36*$E$27))))))<=E20,(C36-E20),(IF(OR(E22<=0,M19<E20),0,(IF((E22<1),(M19-E20),(C36*$E$27)))))))))*$K$30/$K$31), (IF(C36<=0,0,(IF((C36-(IF(OR(E22<=0,M19<E20),0,(IF((E22<1),(M19-E20),(C36*$E$27))))))<=E20,(C36-E20),(IF(OR(E22<=0,M19<E20),0,(IF((E22<1),(M19-E20),(C36*$E$27))))))))))), (IF(B36=$K$29,((IF(C36<=0,0,(IF(((C36-(IF($M$34<12,C36*$E$27*$M$34/12,C36*$E$27)))<=$E$20),(C36-$E$20),(IF($M$34<12,C36*$E$27*$M$34/12,C36*$E$27))))))*$K$30/$K$31), (IF(C36<=0,0,(IF(((C36-(IF($M$34<12,C36*$E$27*$M$34/12,C36*$E$27)))<=$E$20),(C36-$E$20),(IF($M$34<12,C36*$E$27*$M$34/12,C36*$E$27))))))))) -> 510659.4774 | AJ39: =IF(AND($E$18>=AL39,$E$18<=AM39),$E$18,"N") -> N | AK39: 2015-16 | AL39: 2015-04-01 | AM39: 2016-03-31 | AN39: 366 | AP39: =IF(AND($E$18>=AR39,$E$18<=AS39),$E$18,"N") -> N | AQ39: 2015-16 | AR39: 2015-04-01 | AS39: 2016-03-31 | AT39: 2016-04-01 | AU39: 366
B40: 2018-19 | C40: 1557362.09 | D40: 510659.4774 | E40: 1046702.613 | G40: Unhide | J40: Current Year | M40: 2019-20 | AJ40: N | AK40: 2016-17 | AL40: 2016-04-01 | AM40: 2017-03-31 | AN40: 365 | AP40: N | AQ40: 2016-17 | AR40: 2016-04-01 | AS40: 2017-03-31 | AT40: 2017-04-01 | AU40: 365
B41: 2019-20 | C41: 1046702.613 | D41: 65576.49027 | E41: 981126.1228 | G41: Unhide | J41: Gross Block - Opening Value 01-04-19 | M41: =IF(AND($E$18>$AM$42,$E$18<$AL$44),0, (IF($E$18>$AM$43,"Not Applicable",(IF((VLOOKUP($M$40,$B$36:$F$96,2,FALSE))>0,$E$17,0))))) -> 4500000 | U41: =IF(($E$18<$AR$38), (IF(B36=$K$29,((IF(C36<=0,0,(IF((C36-(IF(OR($E$22<=0,$M$19<$E$20),0,(IF(($E$22<1),($M$19-$E$20),(C36*$E$27))))))<=$E$20,(C36-$E$20),(IF(OR($E$22<=0,$M$19<$E$20),0,(IF(($E$22<1),($M$19-$E$20),(C36*$E$27)))))))))*$K$30/$K$31), (IF(C36<=0,0,(IF((C36-(IF(OR($E$22<=0,$M$19<$E$20),0,(IF(($E$22<1),($M$19-$E$20),(C36*$E$27))))))<=$E$20,(C36-$E$20),(IF(OR($E$22<=0,$M$19<$E$20),0,(IF(($E$22<1),($M$19-$E$20),(C36*$E$27))))))))))), (IF(B36=$K$29,((IF(C36<=0,0,(IF(((C36-(IF($M$34<12,C36*$E$27*$M$34/12,C36*$E$27)))<=$E$20),(C36-$E$20),(IF($M$34<12,C36*$E$27*$M$34/12,C36*$E$27))))))*$K$30/$K$31), (IF(C36<=0,0,(IF(((C36-(IF($M$34<12,C36*$E$27*$M$34/12,C36*$E$27)))<=$E$20),(C36-$E$20),(IF($M$34<12,C36*$E$27*$M$34/12,C36*$E$27))))))))) -> 510659.4774 | AJ41: N | AK41: 2017-18 | AL41: 2017-04-01 | AM41: 2018-03-31 | AN41: 365 | AP41: N | AQ41: 2017-18 | AR41: 2017-04-01 | AS41: 2018-03-31 | AT41: 2018-04-01 | AU41: 365
A42: Hide | B42: 2020-21 | C42: 0 | D42: 0 | E42: 0 | G42: Unhide | J42: Gross Block - Addition | M42: =IF(AND($E$18>$AM$42, $E$18<$AL$44),$E$17,0) -> 0 | U42: =IF(OR(B36=$K$29, D36<0.5), 0, (IF(B37=$K$29,((IF(AND($E$9=$J$17,$D$27=$K$17),(IF(E36<=$E$20,0,IF(((C37)-(C37*$E$27))<$E$20,C37-$E$20,C37*$E$27))),(IF(E36<=$E$20,0,IF((C37-($C$36*$E$27))<$E$20,C37-$E$20,$C$36*$E$27)))))*$K$30/$K$31),(IF(AND($E$9=$J$17,$D$27=$K$17),(IF(E36<=$E$20,0,IF(((C37)-(C37*$E$27))<$E$20,C37-$E$20,C37*$E$27))),(IF(E36<=$E$20,0,IF((C37-($C$36*$E$27))<$E$20,C37-$E$20,$C$36*$E$27)))))))) -> 510659.4774 | V42: =IF(E36<=$E$20,0,IF((((C37)-(C37*$E$27))<$E$20),(C37-$E$20),(C37*$E$27))) -> 438222.5047 | W42: =IF(E36<=$E$20, 0, IF(C37-($C$36*$E$27)<$E$20, C37-$E$20, $C$36*$E$27)) -> 510659.4774 | AJ42: N | AK42: 2018-19 | AL42: 2018-04-01 | AM42: 2019-03-31 | AN42: 365 | AP42: N | AQ42: 2018-19 | AR42: 2018-04-01 | AS42: 2019-03-31 | AT42: 2019-04-01 | AU42: 365
A43: Hide | B43: 2021-22 | C43: 0 | D43: 0 | E43: 0 | G43: Unhide | J43: Gross Block - Deduction | M43: =IF($E$28="YES",(IF(AND($D$30>$AM$42,$D$30<$AL$44),($M$41+$M$42),0)),0) -> 4500000 | U43: =IF(AND($E$9=$J$17,$D$27=$K$17),(IF(E36<=$E$20,0,IF((((C37)-(C37*$E$27))<$E$20),(C37-$E$20),(C37*$E$27)))),(IF(E36<=$E$20, 0, IF(C37-($C$36*$E$27)<$E$20, C37-$E$20, $C$36*$E$27)))) -> 510659.4774 | AJ43: N | AK43: 2019-20 | AL43: 2019-04-01 | AM43: 2020-03-31 | AN43: 366 | AP43: N | AQ43: 2019-20 | AR43: 2019-04-01 | AS43: 2020-03-31 | AT43: 2020-04-01 | AU43: 366
A44: Hide | B44: 2022-23 | C44: 0 | D44: 0 | E44: 0 | G44: Unhide | J44: Gross Block - Closing Value 31-3-20 | M44: =+$M$41+$M$42-$M$43 -> 0 | AJ44: N | AK44: 2020-21 | AL44: 2020-04-01 | AM44: 2021-03-31 | AN44: 365 | AP44: N | AQ44: 2020-21 | AR44: 2020-04-01 | AS44: 2021-03-31 | AT44: 2021-04-01 | AU44: 365
A45: Hide | B45: 2023-24 | C45: 0 | D45: 0 | E45: 0 | G45: Unhide | J45: Depreciation- Opening Value 01-04-19 | M45: =IF(AND($E$18>$AM$42,$E$18<$AL$44),0,(IF((VLOOKUP($M$40,$B$36:$F$96,2,FALSE))>0,(IF($E$18>$AM$43,"Not Applicable",($E$17-(IFERROR((VLOOKUP($M$39,$B$36:$F$96,4,FALSE)),"Invalid"))))),0))) -> 3453297.387
A46: Hide | B46: 2024-25 | C46: 0 | D46: 0 | E46: 0 | G46: Unhide | J46: Depreciation- Addition | M46: =IF($E$18>$AM$43, "Not Applicable", (IFERROR((VLOOKUP($M$40,$B$36:$F$96,3,FALSE)),0))) -> 65576.49027 | AK46: 2014-15 | AL46: 2015-16
A47: Hide | B47: 2025-26 | C47: 0 | D47: 0 | E47: 0 | G47: Unhide | J47: Depreciation- Deduction | M47: =IF($E$28="YES",(IF(AND($D$30>$AM$42,$D$30<$AL$44),($M$45+$M$46),0)),0) -> 3518873.877 | AK47: 2015-16 | AL47: 2016-17
A48: Hide | B48: 2026-27 | C48: 0 | D48: 0 | E48: 0 | G48: Unhide | J48: Depreciation - Closing Value 31-3-20 | M48: =+$M$45+$M$46-$M$47 -> 0 | AK48: 2016-17 | AL48: 2017-18
A49: Hide | B49: 2027-28 | C49: 0 | D49: 0 | E49: 0 | G49: Unhide | J49: Net Block as on 31.03.2019 | M49: =+$M$41-$M$45 -> 1046702.613 | AK49: 2017-18 | AL49: 2018-19
A50: Hide | B50: 2028-29 | C50: 0 | D50: 0 | E50: 0 | G50: Unhide | J50: Net Block as on 31.03.2020 | M50: =+$M$44-$M$48 -> 0 | AK50: 2018-19 | AL50: 2019-20
A51: Hide | B51: 2029-30 | C51: 0 | D51: 0 | E51: 0 | G51: Unhide | AK51: 2019-20 | AL51: 2020-21
A52: Hide | B52: 2030-31 | C52: 0 | D52: 0 | E52: 0 | G52: Unhide | AK52: 2020-21 | AL52: 2021-22
A53: Hide | B53: 2031-32 | C53: 0 | D53: 0 | E53: 0 | G53: Unhide | AK53: 2021-22 | AL53: 2022-23
A54: Hide | B54: 2032-33 | C54: 0 | D54: 0 | E54: 0 | G54: Unhide | AK54: 2022-23 | AL54: 2023-24
A55: Hide | B55: 2033-34 | C55: 0 | D55: 0 | E55: 0 | G55: Unhide | AK55: 2023-24 | AL55: 2024-25
A56: Hide | B56: 2034-35 | C56: 0 | D56: 0 | E56: 0 | G56: Unhide | AK56: 2024-25 | AL56: 2025-26
A57: Hide | B57: 2035-36 | C57: 0 | D57: 0 | E57: 0 | G57: Unhide | AK57: 2025-26 | AL57: 2026-27
A58: Hide | B58: 2036-37 | C58: 0 | D58: 0 | E58: 0 | G58: Unhide | AK58: 2026-27 | AL58: 2027-28
A59: Hide | B59: 2037-38 | C59: 0 | D59: 0 | E59: 0 | G59: Unhide | AK59: 2027-28 | AL59: 2028-29
A60: Hide | B60: 2038-39 | C60: 0 | D60: 0 | E60: 0 | G60: Unhide | AK60: 2028-29 | AL60: 2029-30
A61: Hide | B61: 2039-40 | C61: 0 | D61: 0 | E61: 0 | G61: Unhide | AK61: 2029-30 | AL61: 2030-31
A62: Hide | B62: 2040-41 | C62: 0 | D62: 0 | E62: 0 | G62: Unhide | AK62: 2030-31 | AL62: 2031-32
A63: Hide | B63: 2041-42 | C63: 0 | D63: 0 | E63: 0 | G63: Unhide | AK63: 2031-32 | AL63: 2032-33
A64: Hide | B64: 2042-43 | C64: 0 | D64: 0 | E64: 0 | G64: Unhide | AK64: 2032-33 | AL64: 2033-34
A65: Hide | B65: 2043-44 | C65: 0 | D65: 0 | E65: 0 | G65: Unhide | AK65: 2033-34 | AL65: 2034-35
A66: Hide | B66: 2044-45 | C66: 0 | D66: 0 | E66: 0 | G66: Unhide | AK66: 2034-35 | AL66: 2035-36
A67: Hide | B67: 2045-46 | C67: 0 | D67: 0 | E67: 0 | G67: Unhide | AK67: 2035-36 | AL67: 2036-37
A68: Hide | B68: 2046-47 | C68: 0 | D68: 0 | E68: 0 | G68: Unhide | AK68: 2036-37 | AL68: 2037-38
A69: Hide | B69: =VLOOKUP(B68,$AK$46:$AL$114,2,FALSE) -> 2047-48 | C69: 0 | D69: =IF(OR(B68=$K$29, D68<0.5), 0, (IF(B69=$K$29,((IF(AND($E$9=$J$17,$D$27=$K$17),(IF(E68<=$E$20,0,IF(((C69)-(C69*$E$27))<$E$20,C69-$E$20,C69*$E$27))),(IF(E68<=$E$20,0,IF((C69-($C$36*$E$27))<$E$20,C69-$E$20,$C$36*$E$27)))))*$K$30/$K$31),(IF(AND($E$9=$J$17,$D$27=$K$17),(IF(E68<=$E$20,0,IF(((C69)-(C69*$E$27))<$E$20,C69-$E$20,C69*$E$27))),(IF(E68<=$E$20,0,IF((C69-($C$36*$E$27))<$E$20,C69-$E$20,$C$36*$E$27)))))))) -> 0 | E69: 0 | G69: Unhide | AK69: 2037-38 | AL69: 2038-39
A70: Hide | B70: 2048-49 | C70: 0 | D70: 0 | E70: 0 | G70: Unhide | AK70: 2038-39 | AL70: 2039-40
A71: Hide | B71: 2049-50 | C71: 0 | D71: 0 | E71: 0 | G71: Unhide | AK71: 2039-40 | AL71: 2040-41
A72: Hide | B72: 2050-51 | C72: 0 | D72: 0 | E72: 0 | G72: Unhide | AK72: 2040-41 | AL72: 2041-42
A73: Hide | B73: 2051-52 | C73: 0 | D73: 0 | E73: 0 | G73: Unhide | AK73: 2041-42 | AL73: 2042-43
A74: Hide | B74: 2052-53 | C74: 0 | D74: 0 | E74: 0 | G74: Unhide | AK74: 2042-43 | AL74: 2043-44
A75: Hide | B75: 2053-54 | C75: 0 | D75: 0 | E75: 0 | G75: Unhide | AK75: 2043-44 | AL75: 2044-45
A76: Hide | B76: 2054-55 | C76: 0 | D76: 0 | E76: 0 | G76: Unhide | AK76: 2044-45 | AL76: 2045-46
A77: Hide | B77: 2055-56 | C77: 0 | D77: 0 | E77: 0 | G77: Unhide | AK77: 2045-46 | AL77: 2046-47
A78: Hide | B78: 2056-57 | C78: 0 | D78: 0 | E78: 0 | G78: Unhide | AK78: 2046-47 | AL78: 2047-48
A79: Hide | B79: 2057-58 | C79: 0 | D79: 0 | E79: 0 | G79: Unhide | AK79: 2047-48 | AL79: 2048-49
A80: Hide | B80: 2058-59 | C80: 0 | D80: 0 | E80: 0 | G80: Unhide | AK80: 2048-49 | AL80: 2049-50
A81: Hide | B81: 2059-60 | C81: 0 | D81: 0 | E81: 0 | G81: Unhide | AK81: 2049-50 | AL81: 2050-51
A82: Hide | B82: 2060-61 | C82: 0 | D82: 0 | E82: 0 | G82: Unhide | AK82: 2050-51 | AL82: 2051-52
A83: Hide | B83: 2061-62 | C83: 0 | D83: 0 | E83: 0 | G83: Unhide | AK83: 2051-52 | AL83: 2052-53
A84: Hide | B84: 2062-63 | C84: 0 | D84: 0 | E84: 0 | G84: Unhide | AK84: 2052-53 | AL84: 2053-54
A85: Hide | B85: 2063-64 | C85: 0 | D85: 0 | E85: 0 | G85: Unhide | AK85: 2053-54 | AL85: 2054-55
A86: Hide | B86: 2064-65 | C86: 0 | D86: 0 | E86: 0 | G86: Unhide | AK86: 2054-55 | AL86: 2055-56
A87: Hide | B87: 2065-66 | C87: 0 | D87: 0 | E87: 0 | G87: Unhide | AK87: 2055-56 | AL87: 2056-57
A88: Hide | B88: 2066-67 | C88: 0 | D88: 0 | E88: 0 | G88: Unhide | AK88: 2056-57 | AL88: 2057-58
A89: Hide | B89: 2067-68 | C89: 0 | D89: 0 | E89: 0 | G89: Unhide | AK89: 2057-58 | AL89: 2058-59
A90: Hide | B90: 2068-69 | C90: 0 | D90: 0 | E90: 0 | G90: Unhide | AK90: 2058-59 | AL90: 2059-60
A91: Hide | B91: 2069-70 | C91: 0 | D91: 0 | E91: 0 | G91: Unhide | AK91: 2059-60 | AL91: 2060-61
A92: Hide | B92: 2070-71 | C92: 0 | D92: 0 | E92: 0 | G92: Unhide | AK92: 2060-61 | AL92: 2061-62
A93: Hide | B93: 2071-72 | C93: 0 | D93: 0 | E93: 0 | G93: Unhide | AK93: 2061-62 | AL93: 2062-63
A94: Hide | B94: 2072-73 | C94: 0 | D94: 0 | E94: 0 | G94: Unhide | AK94: 2062-63 | AL94: 2063-64
A95: Hide | B95: 2073-74 | C95: 0 | D95: 0 | E95: 0 | G95: Unhide | AK95: 2063-64 | AL95: 2064-65
A96: Hide | B96: 2074-75 | C96: 0 | D96: 0 | E96: 0 | G96: Unhide | AK96: 2064-65 | AL96: 2065-66
AK97: 2065-66 | AL97: 2066-67
AK98: 2066-67 | AL98: 2067-68
AK99: 2067-68 | AL99: 2068-69
AK100: 2068-69 | AL100: 2069-70
AK101: 2069-70 | AL101: 2070-71
AK102: 2070-71 | AL102: 2071-72
AK103: 2071-72 | AL103: 2072-73
AK104: 2072-73 | AL104: 2073-74
AK105: 2073-74 | AL105: 2074-75
AK106: 2074-75 | AL106: 2075-76
AK107: 2075-76 | AL107: 2076-77
AK108: 2076-77 | AL108: 2077-78
AK109: 2077-78 | AL109: 2078-79
AK110: 2078-79 | AL110: 2079-80
AK111: 2079-80 | AL111: 2080-81
AK112: 2080-81 | AL112: 2081-82
AK113: 2081-82 | AL113: 2082-83
AK114: 2082-83 | AL114: 2083-84
B1001: # Depreciation Calculator by: CA BiMaL M. Bhadarka
B1002: 1 | C1002: Select the METHOD OF DEPRECIATION followed by the Company | E1002: =+$E$9 -> Straight Line Method (SLM)
B1003: 2 | C1003: Select the TYPE OF THE PPE as per Part-C of Schedule - II under Companies Act | E1003: =+$E$10 -> A6_Motor_Vehicles
C1004: Select the Category of a particular PPE as per Part-C of the Schedule - II. | E1004: =+$E$12 -> MV_Other_than_used_in_business_of_hire
C1005: Select Sub-Category of a particular PPE as per Part-C of the Schedule - II. | E1005: =+$E$13 -> Other than continuous process plant
C1006: Select the Name of the PPE as per Part-C of Schedule - II under Companies Act | E1006: =+$E$14 -> Motor Cars
C1007: Provide the Name of the PPE as per Books of the Company [For ready reference only] | E1007: =+$E$15 -> MY FAVOURITE PPE
B1008: 3 | C1008: Useful life of the PPE as per SCHEDULE - II | E1008: =+$E$16 -> 8
B1009: 4 | C1009: Provide Cost of Acquisition of the PPE [i.e. Cost at the time of Purchase] [C] | E1009: =+$E$17 -> 4500000
B1010: 5 | C1010: Provide Date of Acquisition of the PPE | E1010: =+$E$18 -> 2012-12-12
B1011: 6 | C1011: Mention the Scrap Value of PPE as estimated. [Restricted maximum upto 5%] | E1011: =+$E$19 -> 180000
B1012: 7 | C1012: Provide Opening Value as on 01-04-2014 in case PPE acquired before 01.04.2014 [C] | E1012: =+$E$21 -> 3600000
B1013: 8 | C1013: Transitional Adjustment to Retained Earnings, if any, when PPE acquired before 01.04.2014:
C1014: ☞ Dr. to Op. P & L A/c. & Cr. to Asset A/c. | E1014: =+$E$24 -> --
C1015: ☞ Dr. to Asset A/c. & Cr. to Op. P & L A/c. | E1015: =+$E$25 -> --
B1016: 9 | C1016: Provide Number of Shifts the PPE is used | E1016: =+$E$26 -> Single Shift
B1017: 10 | C1017: Whether there is Disposal (ie. Sale/Discard) of such PPE after 31.03.2014? ☞ | E1017: =+$E$28 -> YES
B1018: (10.a) | C1018: If YES, (ie. when PPE | D1018: Date of Disposal | E1018: Net Consideration of Sale
C1019: disposed off) ☞ | D1019: =+D30 -> 2019-05-18 | E1019: =+$E$30 -> 900000
B1020: (10.b) | C1020: Profit/(Loss) on Sale or Discard of PPE is… | E1020: =+$E$31 -> LOSS = | F1020: =+$F$31 -> 81126.12276
B1022: :: CALCULATION of DEPRECIATION ::
B1023: Year | C1023: Opening Balance | D1023: Depreciation | E1023: Closing Balance
B1024: =+$B$36 -> 2014-15 | C1024: =+$C$36 -> 3600000 | D1024: =+$D$36 -> 510659.4774 | E1024: =+$E$36 -> 3089340.523
B1025: =+$B$37 -> 2015-16 | C1025: =+$C$37 -> 3089340.523 | D1025: =+$D$37 -> 510659.4774 | E1025: =+$E$37 -> 2578681.045
B1026: =+$B$38 -> 2016-17 | C1026: =+$C$38 -> 2578681.045 | D1026: =+$D$38 -> 510659.4774 | E1026: =+$E$38 -> 2068021.568
B1027: =+$B$39 -> 2017-18 | C1027: =+$C$39 -> 2068021.568 | D1027: =+$D$39 -> 510659.4774 | E1027: =+$E$39 -> 1557362.09
B1028: =+$B$40 -> 2018-19 | C1028: =+$C$40 -> 1557362.09 | D1028: =+$D$40 -> 510659.4774 | E1028: =+$E$40 -> 1046702.613
B1029: =+$B$41 -> 2019-20 | C1029: =+$C$41 -> 1046702.613 | D1029: =+$D$41 -> 65576.49027 | E1029: =+$E$41 -> 981126.1228
B1030: =+$B$42 -> 2020-21 | C1030: =+$C$42 -> 0 | D1030: =+$D$42 -> 0 | E1030: =+$E$42 -> 0
B1031: =+$B$43 -> 2021-22 | C1031: =+$C$43 -> 0 | D1031: =+$D$43 -> 0 | E1031: =+$E$43 -> 0
B1032: =+$B$44 -> 2022-23 | C1032: =+$C$44 -> 0 | D1032: =+$D$44 -> 0 | E1032: =+$E$44 -> 0
B1033: =+$B$45 -> 2023-24 | C1033: =+$C$45 -> 0 | D1033: =+$D$45 -> 0 | E1033: =+$E$45 -> 0
B1034: =+$B$46 -> 2024-25 | C1034: =+$C$46 -> 0 | D1034: =+$D$46 -> 0 | E1034: =+$E$46 -> 0
B1035: =+$B$47 -> 2025-26 | C1035: =+$C$47 -> 0 | D1035: =+$D$47 -> 0 | E1035: =+$E$47 -> 0
B1036: =+$B$48 -> 2026-27 | C1036: =+$C$48 -> 0 | D1036: =+$D$48 -> 0 | E1036: =+$E$48 -> 0
B1037: =+$B$49 -> 2027-28 | C1037: =+$C$49 -> 0 | D1037: =+$D$49 -> 0 | E1037: =+$E$49 -> 0
B1038: =+$B$50 -> 2028-29 | C1038: =+$C$50 -> 0 | D1038: =+$D$50 -> 0 | E1038: =+$E$50 -> 0
B1039: =+$B$51 -> 2029-30 | C1039: =+$C$51 -> 0 | D1039: =+$D$51 -> 0 | E1039: =+$E$51 -> 0
B1040: =+$B$52 -> 2030-31 | C1040: =+$C$52 -> 0 | D1040: =+$D$52 -> 0 | E1040: =+$E$52 -> 0
B1041: =+$B$53 -> 2031-32 | C1041: =+$C$53 -> 0 | D1041: =+$D$53 -> 0 | E1041: =+$E$53 -> 0
B1042: =+$B$54 -> 2032-33 | C1042: =+$C$54 -> 0 | D1042: =+$D$54 -> 0 | E1042: =+$E$54 -> 0
B1043: =+$B$55 -> 2033-34 | C1043: =+$C$55 -> 0 | D1043: =+$D$55 -> 0 | E1043: =+$E$55 -> 0
B1044: =+$B$56 -> 2034-35 | C1044: =+$C$56 -> 0 | D1044: =+$D$56 -> 0 | E1044: =+$E$56 -> 0
B1045: =+$B$57 -> 2035-36 | C1045: =+$C$57 -> 0 | D1045: =+$D$57 -> 0 | E1045: =+$E$57 -> 0
B1046: =+$B$58 -> 2036-37 | C1046: =+$C$58 -> 0 | D1046: =+$D$58 -> 0 | E1046: =+$E$58 -> 0
B1047: =+$B$59 -> 2037-38 | C1047: =+$C$59 -> 0 | D1047: =+$D$59 -> 0 | E1047: =+$E$59 -> 0
B1048: =+$B$60 -> 2038-39 | C1048: =+$C$60 -> 0 | D1048: =+$D$60 -> 0 | E1048: =+$E$60 -> 0
B1049: =+$B$61 -> 2039-40 | C1049: =+$C$61 -> 0 | D1049: =+$D$61 -> 0 | E1049: =+$E$61 -> 0
B1050: =+$B$62 -> 2040-41 | C1050: =+$C$62 -> 0 | D1050: =+$D$62 -> 0 | E1050: =+$E$62 -> 0
B1051: =+$B$63 -> 2041-42 | C1051: =+$C$63 -> 0 | D1051: =+$D$63 -> 0 | E1051: =+$E$63 -> 0
B1052: =+$B$64 -> 2042-43 | C1052: =+$C$64 -> 0 | D1052: =+$D$64 -> 0 | E1052: =+$E$64 -> 0
B1053: =+$B$65 -> 2043-44 | C1053: =+$C$65 -> 0 | D1053: =+$D$65 -> 0 | E1053: =+$E$65 -> 0
B1054: =+$B$66 -> 2044-45 | C1054: =+$C$66 -> 0 | D1054: =+$D$66 -> 0 | E1054: =+$E$66 -> 0
B1055: =+$B$67 -> 2045-46 | C1055: =+$C$67 -> 0 | D1055: =+$D$67 -> 0 | E1055: =+$E$67 -> 0
B1056: =+$B$68 -> 2046-47 | C1056: =+$C$68 -> 0 | D1056: =+$D$68 -> 0 | E1056: =+$E$68 -> 0
B1057: =+$B$69 -> 2047-48 | C1057: =+$C$69 -> 0 | D1057: =+$D$69 -> 0 | E1057: =+$E$69 -> 0
B1058: =+$B$70 -> 2048-49 | C1058: =+$C$70 -> 0 | D1058: =+$D$70 -> 0 | E1058: =+$E$70 -> 0
B1059: =+$B$71 -> 2049-50 | C1059: =+$C$71 -> 0 | D1059: =+$D$71 -> 0 | E1059: =+$E$71 -> 0
B1060: =+$B$72 -> 2050-51 | C1060: =+$C$72 -> 0 | D1060: =+$D$72 -> 0 | E1060: =+$E$72 -> 0
B1061: =+$B$73 -> 2051-52 | C1061: =+$C$73 -> 0 | D1061: =+$D$73 -> 0 | E1061: =+$E$73 -> 0
B1062: =+$B$74 -> 2052-53 | C1062: =+$C$74 -> 0 | D1062: =+$D$74 -> 0 | E1062: =+$E$74 -> 0
B1063: =+$B$75 -> 2053-54 | C1063: =+$C$75 -> 0 | D1063: =+$D$75 -> 0 | E1063: =+$E$75 -> 0
B1064: =+$B$76 -> 2054-55 | C1064: =+$C$76 -> 0 | D1064: =+$D$76 -> 0 | E1064: =+$E$76 -> 0
B1065: =+$B$77 -> 2055-56 | C1065: =+$C$77 -> 0 | D1065: =+$D$77 -> 0 | E1065: =+$E$77 -> 0
B1066: =+$B$78 -> 2056-57 | C1066: =+$C$78 -> 0 | D1066: =+$D$78 -> 0 | E1066: =+$E$78 -> 0
B1067: =+$B$79 -> 2057-58 | C1067: =+$C$79 -> 0 | D1067: =+$D$79 -> 0 | E1067: =+$E$79 -> 0
B1068: =+$B$80 -> 2058-59 | C1068: =+$C$80 -> 0 | D1068: =+$D$80 -> 0 | E1068: =+$E$80 -> 0
B1069: =+$B$81 -> 2059-60 | C1069: =+$C$81 -> 0 | D1069: =+$D$81 -> 0 | E1069: =+$E$81 -> 0
B1070: =+$B$82 -> 2060-61 | C1070: =+$C$82 -> 0 | D1070: =+$D$82 -> 0 | E1070: =+$E$82 -> 0
B1071: =+$B$83 -> 2061-62 | C1071: =+$C$83 -> 0 | D1071: =+$D$83 -> 0 | E1071: =+$E$83 -> 0
B1072: =+$B$84 -> 2062-63 | C1072: =+$C$84 -> 0 | D1072: =+$D$84 -> 0 | E1072: =+$E$84 -> 0
B1073: =+$B$85 -> 2063-64 | C1073: =+$C$85 -> 0 | D1073: =+$D$85 -> 0 | E1073: =+$E$85 -> 0
B1074: =+$B$86 -> 2064-65 | C1074: =+$C$86 -> 0 | D1074: =+$D$86 -> 0 | E1074: =+$E$86 -> 0
B1075: =+$B$87 -> 2065-66 | C1075: =+$C$87 -> 0 | D1075: =+$D$87 -> 0 | E1075: =+$E$87 -> 0
B1076: =+$B$88 -> 2066-67 | C1076: =+$C$88 -> 0 | D1076: =+$D$88 -> 0 | E1076: =+$E$88 -> 0
B1077: =+$B$89 -> 2067-68 | C1077: =+$C$89 -> 0 | D1077: =+$D$89 -> 0 | E1077: =+$E$89 -> 0
B1078: =+$B$90 -> 2068-69 | C1078: =+$C$90 -> 0 | D1078: =+$D$90 -> 0 | E1078: =+$E$90 -> 0
B1079: =+$B$91 -> 2069-70 | C1079: =+$C$91 -> 0 | D1079: =+$D$91 -> 0 | E1079: =+$E$91 -> 0
B1080: =+$B$92 -> 2070-71 | C1080: =+$C$92 -> 0 | D1080: =+$D$92 -> 0 | E1080: =+$E$92 -> 0
B1081: =+$B$93 -> 2071-72 | C1081: =+$C$93 -> 0 | D1081: =+$D$93 -> 0 | E1081: =+$E$93 -> 0
B1082: =+$B$94 -> 2072-73 | C1082: =+$C$94 -> 0 | D1082: =+$D$94 -> 0 | E1082: =+$E$94 -> 0
B1083: =+$B$95 -> 2073-74 | C1083: =+$C$95 -> 0 | D1083: =+$D$95 -> 0 | E1083: =+$E$95 -> 0
B1084: =+$B$96 -> 2074-75 | C1084: =+$C$96 -> 0 | D1084: =+$D$96 -> 0 | E1084: =+$E$96 -> 0

Sheet Sheet1 (hidden)
B10: MAIN_HEADINGS
B11: A1_Buildings
B12: A2_Bridges_culverts_bunders_etc.
B13: A3_Roads
B14: A4_Plant_and_Machinery
B15: A5_Furniture_and_fittings
B16: A6_Motor_Vehicles
B17: A7_Ships
B18: A8_Aircrafts_or_Helicopters
B19: A9_Railways_Equipments
B20: A10_Ropeway
B21: A11_Office_Equipment
B22: A12_Computers
B23: A13_Laboratory_Equipments
B24: A14_Electrical_Installations
B25: A15_Hydraulic_Works
B29: MAIN_HEADINGS | D29: SUB_CATEGORY-1 | F29: NAME_OF_ASSET | U29: USEFUL_LIFES
B30: A1_Buildings | D30: A1_Buildings | F30: Factory_Buildings | G30: Other_than_Factory_Buildings | H30: Others | U30: RCC Frame Structure | V30: 60
D31: Factory_Buildings | F31: Factory buildings | G31: RCC Frame Structure | H31: Fences, wells, tube wells | U31: Other than RCC Frame Structure | V31: 30
D32: Other_than_Factory_Buildings | G32: Other than RCC Frame Structure | H32: Others incl. temporary structure, etc. | U32: Factory buildings | V32: 30
D33: Others | U33: Fences, wells, tube wells | V33: 5
U34: Others incl. temporary structure, etc. | V34: 3
B36: A2_Bridges_culverts_bunders_etc. | D36: A2_Bridges_culverts_bunders_etc. | F36: Bridges | G36: Culverts | H36: Bunders | U36: Bridges | V36: 30
D37: Bridges | F37: Bridges | G37: Culverts | H37: Bunders | U37: Culverts | V37: 30
D38: Culverts | U38: Bunders | V38: 30
D39: Bunders
B41: A3_Roads | D41: A3_Roads | F41: Carpeted_Roads | G41: Non_carpeted_Roads | U41: RCC | V41: 10
D42: Carpeted_Roads | F42: RCC | G42: Non-carpeted roads | U42: Other than RCC | V42: 5
D43: Non_carpeted_Roads | F43: Other than RCC | U43: Non-carpeted roads | V43: 3
B45: A4_Plant_and_Machinery | D45: A4_Plant_and_Machinery | F45: General_Rate_Plant_and_Machinery | G45: Special_Plant_and_Machinery | H45: Motion_Picture_Films | I45: Glass_Manufacturing | J45: Mines_and_Quarries | K45: PM_used_in_Telecommunications | L45: Exploration_Production_and_Refining_Oil_and_Gas | M45: Generation_Transmission_and_Distribution_of_Power | N45: PM_used_in_Manufacture_of_steel | O45: Manufacture_of_Nonferrous_Metals | P45: Medical_and_Surgical_Operations | Q45: Manufacture_of_Pharmaceuticals_and_Chemicals | R45: PM_used_in_Civil_Construction | S45: PM_used_in_Salt_Works | U45: Continuous process plant | V45: 25
D46: General_Rate_Plant_and_Machinery | F46: Continuous process plant | G46: Motion_Picture_Films | H46: Cinematograph films | I46: Recuperative & regenerative glass melting furnaces | J46: Portable under ground machinery and earth moving machinery. | K46: Towers | L46: Refineries | M46: Thermal/Gas/Combined Cycle Power Generation Plant | N46: Sinter Plant | O46: Metal pot line | P46: Electrical Machinery, X-ray and electrotherapeutic apparatus and accessories thereto, medical, diagnostic equipments, namely, Cat-Scan, Ultrasound Machines, ECG Monitors, etc. | Q46: Reactors | R46: Concreting, Crushing, Piling Equipments and Road Making Equipments | S46: Plant and Machinery used in salt works | U46: Other than continuous process plant | V46: 15
D47: Special_Plant_and_Machinery | F47: Other than continuous process plant | G47: Glass_Manufacturing | H47: Projecting equipment for exhibition of films | I47: Moulds | K47: Telecom transceivers, switching centres, transmission and other network equipment | L47: Oil and gas assets (including wells), processing plant and facilities | M47: Hydro Power Generation Plant | N47: Blast Furnace | O47: Bauxite crushing and grinding section | P47: Other Equipments. | Q47: Distillation Columns | R47: Heavy Lift Equipments - Cranes with capacity of more than 100 tons | U47: Cinematograph films | V47: 13
G48: Mines_and_Quarries | I48: Float Glass Melting Furnaces | K48: Telecom-Ducts, Cables and optical fibre | L48: Petrochemical Plant | M48: Nuclear Power Generation Plant | N48: Coke ovens | O48: Digester section | Q48: Drying equipments/Centrifuges and Decanters | R48: Heavy Lift Equipments - Cranes with capacity of less than 100 tons | U48: Projecting equipment for exhibition of films | V48: 13
G49: PM_used_in_Telecommunications | K49: Satellites | L49: Storage tanks and related equipment | M49: Transmission lines, cables and other network assets | N49: Rolling mill in steel plant | O49: Turbine | Q49: Vessel/storage tanks | R49: Transmission line, Tunneling Equipments | U49: Recuperative & regenerative glass melting furnaces | V49: 13
G50: Exploration_Production_and_Refining_Oil_and_Gas | L50: Pipelines | M50: Wind Power Generation Plant | N50: Basic oxygen Furnace Converter | O50: Equipments for Calcination | R50: Earth-moving equipments | U50: Moulds | V50: 8
G51: Generation_Transmission_and_Distribution_of_Power | L51: Drilling Rig | M51: Electric Distribution Plant | O51: Copper Smelter | R51: Others including Material Handling /Pipeline/Wfelding Equipments | U51: Float Glass Melting Furnaces | V51: 10
G52: PM_used_in_Manufacture_of_steel | L52: Field operations (above ground) Portable boilers, drilling tools, well-head tanks, etc. | M52: Gas Storage and Distribution Plant | O52: Roll Grinder | U52: Portable under ground machinery and earth moving machinery. | V52: 8
G53: Manufacture_of_Nonferrous_Metals | L53: Loggers | M53: Water Distribution Plant including pipelines | O53: Soaking Pit | U53: Towers | V53: 18
G54: Medical_and_Surgical_Operations | O54: Annealing Furnace | U54: Telecom transceivers, switching centres, transmission and other network equipment | V54: 13
G55: Manufacture_of_Pharmaceuticals_and_Chemicals | O55: Rolling Mills | U55: Telecom-Ducts, Cables and optical fibre | V55: 18
G56: PM_used_in_Civil_Construction | O56: Equipments for Scalping, Slitting , etc. | U56: Satellites | V56: 18
G57: PM_used_in_Salt_Works | O57: Surface Miner, Ripper Dozer, etc., used in mines | U57: Refineries | V57: 25
O58: Copper refining plant | U58: Oil and gas assets (including wells), processing plant and facilities | V58: 25
U59: Petrochemical Plant | V59: 25
U60: Storage tanks and related equipment | V60: 25
U61: Pipelines | V61: 30
U62: Drilling Rig | V62: 30
U63: Field operations (above ground) Portable boilers, drilling tools, well-head tanks, etc. | V63: 8
U64: Loggers | V64: 8
U65: Thermal/Gas/Combined Cycle Power Generation Plant | V65: 40
U66: Hydro Power Generation Plant | V66: 40
U67: Nuclear Power Generation Plant | V67: 40
U68: Transmission lines, cables and other network assets | V68: 40
U69: Wind Power Generation Plant | V69: 22
U70: Electric Distribution Plant | V70: 35
U71: Gas Storage and Distribution Plant | V71: 30
U72: Water Distribution Plant including pipelines | V72: 30
U73: Sinter Plant | V73: 20
U74: Blast Furnace | V74: 20
U75: Coke ovens | V75: 20
U76: Rolling mill in steel plant | V76: 20
U77: Basic oxygen Furnace Converter | V77: 25
U78: Metal pot line | V78: 40
U79: Bauxite crushing and grinding section | V79: 40
U80: Digester section | V80: 40
U81: Turbine | V81: 40
U82: Equipments for Calcination | V82: 40
U83: Copper Smelter | V83: 40
U84: Roll Grinder | V84: 40
U85: Soaking Pit | V85: 30
U86: Annealing Furnace | V86: 30
U87: Rolling Mills | V87: 30
U88: Equipments for Scalping, Slitting , etc. | V88: 30
U89: Surface Miner, Ripper Dozer, etc., used in mines | V89: 25
U90: Copper refining plant | V90: 25
U91: Electrical Machinery, X-ray and electrotherapeutic apparatus and accessories thereto, medical, diagnostic equipments, namely, Cat-Scan, Ultrasound Machines, ECG Monitors, etc. | V91: 13
U92: Other Equipments. | V92: 15
U93: Reactors | V93: 20
U94: Distillation Columns | V94: 20
U95: Drying equipments/Centrifuges and Decanters | V95: 20
U96: Vessel/storage tanks | V96: 20
U97: Concreting, Crushing, Piling Equipments and Road Making Equipments | V97: 12
U98: Heavy Lift Equipments - Cranes with capacity of more than 100 tons | V98: 20
U99: Heavy Lift Equipments - Cranes with capacity of less than 100 tons | V99: 15
U100: Transmission line, Tunneling Equipments | V100: 10
U101: Earth-moving equipments | V101: 9
U102: Others including Material Handling /Pipeline/Wfelding Equipments | V102: 12
U103: Plant and Machinery used in salt works | V103: 15
B105: A5_Furniture_and_fittings | D105: A5_Furniture_and_fittings | F105: General_Furniture_and_fittings | G105: Specific_Furniture_and_fittings | U105: General furniture and fittings | V105: 10
D106: General_Furniture_and_fittings | F106: General furniture and fittings | G106: Used in hotels, restaurants and boarding houses, | U106: Used in hotels, restaurants and boarding houses, | V106: 8
D107: Specific_Furniture_and_fittings | G107: Used in schools, colleges and other educational institutions, libraries | U107: Used in schools, colleges and other educational institutions, libraries | V107: 8
G108: Used in welfare centres and meeting halls | U108: Used in welfare centres and meeting halls | V108: 8
G109: Used in cinema houses, theatres and circuses | U109: Used in cinema houses, theatres and circuses | V109: 8
G110: F & F let out on hire for use on the occasion of marriages and similar functions. | U110: F & F let out on hire for use on the occasion of marriages and similar functions. | V110: 8
B112: A6_Motor_Vehicles | D112: A6_Motor_Vehicles | F112: Motor_Cycles | G112: MV_used_in_business_of_running_them_on_hire | H112: MV_Other_than_used_in_business_of_hire | I112: Heavy_Vehicles | J112: Electrically_Operated_Vehicles | U112: Motor cycles | V112: 10
D113: Motor_Cycles | F113: Motor cycles | G113: Motor Buses - Hire | H113: Motor Buses | I113: Motor Tractors | J113: Electrically Operated Vehicles | U113: Scooters | V113: 10
D114: MV_used_in_business_of_running_them_on_hire | F114: Scooters | G114: Motor Lorries - Hire | H114: Motor Lorries | I114: Harvesting Combines | J114: Battery Powered Vehicles | U114: Other Mopeds | V114: 10
D115: MV_Other_than_used_in_business_of_hire | F115: Other Mopeds | G115: Motor Cars - Hire | H115: Motor Cars | I115: Other Heavy Vehicles | J115: Fuel Cell Powered Vehicles | U115: Motor Buses - Hire | V115: 6
D116: Heavy_Vehicles | G116: Motor Taxies - Hire | H116: Motor Taxies | U116: Motor Lorries - Hire | V116: 6
D117: Electrically_Operated_Vehicles | U117: Motor Cars - Hire | V117: 6
U118: Motor Taxies - Hire | V118: 6
U119: Motor Buses | V119: 8
U120: Motor Lorries | V120: 8
U121: Motor Cars | V121: 8
U122: Motor Taxies | V122: 8
U123: Motor Tractors | V123: 8
U124: Harvesting Combines | V124: 8
U125: Other Heavy Vehicles | V125: 8
U126: Electrically Operated Vehicles | V126: 8
U127: Battery Powered Vehicles | V127: 8
U128: Fuel Cell Powered Vehicles | V128: 8
B130: A7_Ships | D130: A7_Ships | F130: Ocean_Going_Ships | G130: Vessels_Ordinarily_Operating_On_Inland_Waters | U130: Bulk Carriers and liner vessels | V130: 25
D131: Ocean_Going_Ships | F131: Bulk Carriers and liner vessels | G131: Speed boats | U131: Crude tankers, product carriers and easy chemical carriers | V131: 20
D132: Vessels_Ordinarily_Operating_On_Inland_Waters | F132: Crude tankers, product carriers and easy chemical carriers | G132: Other vessels | U132: Chemicals and Acid Carriers With Stainless steel tanks | V132: 25
F133: Chemicals and Acid Carriers With Stainless steel tanks | U133: Chemicals and Acid Carriers With other tanks | V133: 20
F134: Chemicals and Acid Carriers With other tanks | U134: Liquified gas carriers | V134: 30
F135: Liquified gas carriers | U135: Conventional large passenger vessels | V135: 30
F136: Conventional large passenger vessels | U136: Coastal service ships of all categories | V136: 30
F137: Coastal service ships of all categories | U137: Offshore supply and support vessels | V137: 20
F138: Offshore supply and support vessels | U138: Catamarans and other high speed passenger for ships or boats | V138: 20
F139: Catamarans and other high speed passenger for ships or boats | U139: Drill ships | V139: 25
F140: Drill ships | U140: Hovercrafts | V140: 15
F141: Hovercrafts | U141: Fishing vessels with wooden hull | V141: 10
F142: Fishing vessels with wooden hull | U142: Dredgers, tugs, barges, survey launches and other similar ships used mainly for dredging purposes | V142: 14
F143: Dredgers, tugs, barges, survey launches and other similar ships used mainly for dredging purposes | U143: Speed boats | V143: 13
U144: Other vessels | V144: 28
B146: A8_Aircrafts_or_Helicopters | D146: A8_Aircrafts_or_Helicopters | F146: Aircrafts_or_Helicopters | U146: Aircrafts | V146: 20
D147: Aircrafts_or_Helicopters | F147: Aircrafts | U147: Helicopters | V147: 20
F148: Helicopters
B150: A9_Railways_Equipments | D150: A9_Railways_Equipments | F150: RE_excluding_used_by_Railway_Concerns | U150: Railways Sidings | V150: 15
D151: RE_excluding_used_by_Railway_Concerns | F151: Railways Sidings | U151: Locomotives | V151: 15
F152: Locomotives | U152: Rolling Stocks | V152: 15
F153: Rolling Stocks | U153: Tramways and Railways | V153: 15
F154: Tramways and Railways
B156: A10_Ropeway | D156: A10_Ropeway | F156: Ropeway_Structures | U156: Ropeway Structures | V156: 15
D157: Ropeway_Structures | F157: Ropeway Structures
B159: A11_Office_Equipment | D159: A11_Office_Equipment | F159: Office_Equipment | U159: Office Equipments | V159: 5
D160: Office_Equipment | F160: Office Equipments
B162: A12_Computers | D162: A12_Computers | F162: Computers_and_Data_Processing_Units | U162: Servers and networks | V162: 6
D163: Computers_and_Data_Processing_Units | F163: Servers and networks | U163: End user devices, such as, desktops, laptops, etc. | V163: 3
F164: End user devices, such as, desktops, laptops, etc.
B166: A13_Laboratory_Equipments | D166: A13_Laboratory_Equipments | F166: Laboratory_Equipments | U166: General Laboratory Equipments | V166: 10
D167: Laboratory_Equipments | F167: General Laboratory Equipments | U167: Laboratory Equipments used in Educational Institutions | V167: 5
F168: Laboratory Equipments used in Educational Institutions
B170: A14_Electrical_Installations | D170: A14_Electrical_Installations | F170: Electrical_Installations_and_Equipment | U170: Electrical Installations and Equipment | V170: 10
D171: Electrical_Installations_and_Equipment | F171: Electrical Installations and Equipment
B173: A15_Hydraulic_Works | D173: A15_Hydraulic_Works | F173: Hydraulic_Works_Pipelines_and_Sluices | U173: Hydraulic Works, Pipelines and Sluices | V173: 15
D174: Hydraulic_Works_Pipelines_and_Sluices | F174: Hydraulic Works, Pipelines and Sluices

Sheet PPE REGISTER - 2019-20
C1: Name of the Company | H1: : | I1: ABC Limited
C2: Property, Plant & Equipment Register | XFC2: Select
C3: Financial Year | H3: : | I3: F.Y. 2019-20 | XFC3: Straight Line Method (SLM)
XFC4: Written Down Value (WDV)
A5: Sr. No. | B5: Type of the PPE | C5: Name of the PPE | E5: Useful Life | F5: Original Cost | G5: Relevant Date | H5: Scrap Value | I5: Gross Block of PPEs | M5: Accumulated Depreciation | Q5: Net Block of PPEs
B6: (As per Schedule-II of Companies Act) | C6: As per Schedule-II | D6: As per Books | I6: Opening 01-04-19 | J6: Addition | K6: Deduction | L6: Closing 31-03-20 | M6: Opening 01-04-19 | N6: Addition | O6: Deduction | P6: Closing 31-03-20 | Q6: As on 31-03-20 | R6: As on 31-03-19
A7: 1 | B7: A6_Motor_Vehicles | C7: Motor Cars | D7: MY FAVOURITE PPE | E7: 8 | F7: 4500000 | G7: 2012-12-12 | H7: 180000 | I7: 4500000 | J7: 0 | K7: 4500000 | L7: 0 | M7: 3453297 | N7: 65576 | O7: 3518874 | P7: 0 | Q7: 0 | R7: 1046703
A8: =+A7+1 -> 2
A9: =+A8+1 -> 3
A10: 4
A11: 5
A12: 6
A13: 7
A14: 8
A15: 9
A16: 10
A17: 11
A18: 12
A19: 13
A20: 14
A21: 15
A22: 16
A23: 17
A24: 18
A25: 19
A26: 20
A27: 21
A28: 22
A29: 23
A30: 24
A31: 25
A32: 26
A33: 27
A34: 28
A35: 29
A36: 30
A37: 31
A38: 32
A39: 33
A40: 34
A41: 35
A42: 36
A43: 37
A44: 38
A45: 39
A46: 40
A47: 41
A48: 42
A49: 43
A50: 44
A51: 45
A52: 46
A53: 47
A54: 48
A55: 49
A56: 50
A57: 51
A58: 52
A59: 53
A60: 54
A61: 55
A62: 56
A63: 57
A64: 58
A65: 59
A66: 60
A67: 61
A68: 62
A69: 63
A70: 64
A71: 65
A72: 66
A73: =+A72+1 -> 67
A74: 68
A75: 69
A76: 70
A77: 71
A78: 72
A79: 73
A80: 74
A81: 75
A82: 76
A83: 77
A84: 78
A85: 79
A86: 80
A87: 81
A88: 82
A89: 83
A90: 84
A91: 85
A92: 86
A93: 87
A94: 88
A95: 89
A96: 90
A97: 91
A98: 92
A99: 93
A100: 94
A101: 95
A102: 96
A103: 97
A104: 98
A105: 99
A106: 100
